[Event "Titled Tuesday Blitz August 23 Late 2022"]
[White "Moroni, Luca Jr"]
[Black "Caruana, Fabiano"]
[WhiteFideId "865834"]
[BlackFideId "2020009"]
[WhiteElo "2573"]
[BlackElo "2847"]
[Result "0-1"]
[Round "07"]
[TimeControl "180+1"]
[Date "2022.08.23"]
[WhiteClock "0:00:23"]
[BlackClock "0:00:39"]

1. d4 {[%clk 0:03:00]}  Nf6 {[%clk 0:02:59]} 2. Bf4 {[%clk 0:03:00]}  g6 {[%clk 0:02:57]} 3. Nc3 {[%clk 0:03:01]}  d5 {[%clk 0:02:56]} 4. Nb5 {[%clk 0:03:01]}  Na6 {[%clk 0:02:56]} 5. e3 {[%clk 0:03:01]}  Bg7 {[%clk 0:02:56]} 6. h3 {[%clk 0:03:01]}  O-O {[%clk 0:02:56]} 7. Nf3 {[%clk 0:03:02]}  c6 {[%clk 0:02:53]} 8. Nc3 {[%clk 0:03:01]}  Nb8 {[%clk 0:02:49]} 9. Bd3 {[%clk 0:03:00]}  a5 {[%clk 0:02:42]} 10. a4 {[%clk 0:02:56]}  Na6 {[%clk 0:02:42]} 11. O-O {[%clk 0:02:54]}  Nb4 {[%clk 0:02:42]} 12. Be5 {[%clk 0:02:45]}  Nxd3 {[%clk 0:02:41]} 13. cxd3 {[%clk 0:02:46]}  Bh6 {[%clk 0:02:28]} 14. e4 {[%clk 0:02:26]}  Be6 {[%clk 0:02:25]} 15. Re1 {[%clk 0:02:22]}  Qb6 {[%clk 0:02:17]} 16. Qc2 {[%clk 0:02:15]}  Rad8 {[%clk 0:02:15]} 17. Rad1 {[%clk 0:02:11]}  dxe4 {[%clk 0:02:06]} 18. dxe4 {[%clk 0:02:04]}  Bb3 {[%clk 0:02:06]} 19. Qe2 {[%clk 0:02:04]}  Bxd1 {[%clk 0:02:06]} 20. Rxd1 {[%clk 0:02:04]}  Nh5 {[%clk 0:01:58]} 21. Qc2 {[%clk 0:01:34]}  Bg7 {[%clk 0:01:52]} 22. Bxg7 {[%clk 0:01:28]}  Nxg7 {[%clk 0:01:53]} 23. g3 {[%clk 0:01:22]}  Ne6 {[%clk 0:01:47]} 24. d5 {[%clk 0:01:20]}  Nc5 {[%clk 0:01:31]} 25. h4 {[%clk 0:01:20]}  Qb3 {[%clk 0:01:26]} 26. Qd2 {[%clk 0:01:04]}  cxd5 {[%clk 0:01:06]} 27. exd5 {[%clk 0:00:42]}  Nxa4 {[%clk 0:01:03]} 28. Qh6 {[%clk 0:00:40]}  Nxc3 {[%clk 0:01:01]} 29. Re1 {[%clk 0:00:28]}  Nxd5 {[%clk 0:00:46]} 30. Ng5 {[%clk 0:00:23]}  Nf6 {[%clk 0:00:46]} 31. Rxe7 {[%clk 0:00:23]}  Rd1+ {[%clk 0:00:43]} 32. Kh2 {[%clk 0:00:23]}  Ng4+ {[%clk 0:00:39]} 0-1


[Site "https://www.chess.com"]

[Event "Titled Tuesday Blitz August 23 Late 2022"]
[White "Noboa Silva, Kevin"]
[Black "Boruchovsky, Avital"]
[WhiteFideId "3618471"]
[BlackFideId "2800055"]
[WhiteElo "2172"]
[BlackElo "2466"]
[Result "0-1"]
[Round "07"]
[TimeControl "180+1"]
[Date "2022.08.23"]
[WhiteClock "0:00:39"]
[BlackClock "0:01:32"]

1. d4 {[%clk 0:03:00]}  d5 {[%clk 0:02:56]} 2. c4 {[%clk 0:03:00]}  e6 {[%clk 0:02:56]} 3. Nc3 {[%clk 0:03:00]}  c5 {[%clk 0:02:55]} 4. cxd5 {[%clk 0:03:00]}  cxd4 {[%clk 0:02:54]} 5. Qa4+ {[%clk 0:02:59]}  Bd7 {[%clk 0:02:54]} 6. Qxd4 {[%clk 0:02:59]}  exd5 {[%clk 0:02:54]} 7. Qxd5 {[%clk 0:03:00]}  Nf6 {[%clk 0:02:53]} 8. Qd1 {[%clk 0:03:00]}  Bc5 {[%clk 0:02:46]} 9. Nf3 {[%clk 0:03:00]}  O-O {[%clk 0:02:42]} 10. Bg5 {[%clk 0:02:59]}  Qb6 {[%clk 0:02:38]} 11. e3 {[%clk 0:02:53]}  Qxb2 {[%clk 0:02:36]} 12. Bxf6 {[%clk 0:02:51]}  gxf6 {[%clk 0:02:37]} 13. Rc1 {[%clk 0:02:47]}  Bb4 {[%clk 0:02:33]} 14. Qd2 {[%clk 0:02:40]}  Qxd2+ {[%clk 0:02:33]} 15. Nxd2 {[%clk 0:02:34]}  Rc8 {[%clk 0:02:26]} 16. Ne2 {[%clk 0:02:32]}  Na6 {[%clk 0:02:24]} 17. Rxc8+ {[%clk 0:01:54]}  Rxc8 {[%clk 0:02:25]} 18. Nd4 {[%clk 0:01:51]}  Rc1+ {[%clk 0:02:23]} 19. Ke2 {[%clk 0:01:51]}  Ra1 {[%clk 0:02:17]} 20. N2b3 {[%clk 0:01:45]}  Rxa2+ {[%clk 0:02:17]} 21. Kf3 {[%clk 0:01:45]}  Nc5 {[%clk 0:02:13]} 22. Nxc5 {[%clk 0:01:43]}  Bxc5 {[%clk 0:02:14]} 23. Bc4 {[%clk 0:01:43]}  Rc2 {[%clk 0:02:13]} 24. Bd5 {[%clk 0:01:42]}  b5 {[%clk 0:02:10]} 25. Rb1 {[%clk 0:01:39]}  Bxd4 {[%clk 0:02:04]} 26. exd4 {[%clk 0:01:38]}  a5 {[%clk 0:02:02]} 27. Re1 {[%clk 0:01:29]}  Kf8 {[%clk 0:02:01]} 28. Re4 {[%clk 0:01:17]}  a4 {[%clk 0:01:57]} 29. Rh4 {[%clk 0:01:16]}  a3 {[%clk 0:01:37]} 30. Rxh7 {[%clk 0:01:14]}  Be6 {[%clk 0:01:37]} 31. Bxe6 {[%clk 0:01:07]}  fxe6 {[%clk 0:01:38]} 32. Ra7 {[%clk 0:01:06]}  a2 {[%clk 0:01:38]} 33. d5 {[%clk 0:01:02]}  exd5 {[%clk 0:01:36]} 34. Kg4 {[%clk 0:00:49]}  b4 {[%clk 0:01:35]} 35. f4 {[%clk 0:00:38]}  b3 {[%clk 0:01:34]} 36. Kf5 {[%clk 0:00:39]}  Rc1 {[%clk 0:01:32]} 37. Kxf6 {[%clk 0:00:39]}  a1=Q+ {[%clk 0:01:32]} 0-1


[Site "https://www.chess.com"]

[Event "Titled Tuesday Blitz August 23 Late 2022"]
[White "Pakleza, Zbigniew"]
[Black "Bjelobrk, Igor"]
[WhiteFideId "1119290"]
[BlackFideId "4300726"]
[WhiteElo "2411"]
[BlackElo "2335"]
[Result "1-0"]
[Round "07"]
[TimeControl "180+1"]
[Date "2022.08.23"]
[WhiteClock "0:00:02"]
[BlackClock "0:00:02"]

1. d4 {[%clk 0:03:00]}  Nf6 {[%clk 0:02:28]} 2. Nf3 {[%clk 0:03:00]}  d5 {[%clk 0:02:27]} 3. Bf4 {[%clk 0:03:01]}  e6 {[%clk 0:02:26]} 4. e3 {[%clk 0:03:01]}  Bd6 {[%clk 0:02:26]} 5. Bg3 {[%clk 0:03:01]}  O-O {[%clk 0:02:26]} 6. Nbd2 {[%clk 0:03:02]}  c5 {[%clk 0:02:26]} 7. c3 {[%clk 0:03:02]}  Qc7 {[%clk 0:02:24]} 8. Be2 {[%clk 0:03:02]}  Nbd7 {[%clk 0:02:23]} 9. c4 {[%clk 0:03:02]}  b6 {[%clk 0:02:17]} 10. Rc1 {[%clk 0:03:00]}  Bb7 {[%clk 0:02:17]} 11. O-O {[%clk 0:02:56]}  Bxg3 {[%clk 0:02:15]} 12. hxg3 {[%clk 0:02:57]}  Rac8 {[%clk 0:02:12]} 13. dxc5 {[%clk 0:02:50]}  Qxc5 {[%clk 0:02:01]} 14. Nd4 {[%clk 0:02:32]}  Qd6 {[%clk 0:01:57]} 15. cxd5 {[%clk 0:02:02]}  Bxd5 {[%clk 0:01:56]} 16. Qa4 {[%clk 0:01:53]}  Qb8 {[%clk 0:01:50]} 17. b4 {[%clk 0:01:38]}  Ne5 {[%clk 0:01:33]} 18. Ba6 {[%clk 0:01:08]}  Rxc1 {[%clk 0:01:32]} 19. Rxc1 {[%clk 0:01:09]}  h6 {[%clk 0:01:27]} 20. N2f3 {[%clk 0:00:59]}  Ne4 {[%clk 0:01:06]} 21. Nxe5 {[%clk 0:00:16]}  Qxe5 {[%clk 0:01:07]} 22. Nf3 {[%clk 0:00:13]}  Qb2 {[%clk 0:01:02]} 23. Rc2 {[%clk 0:00:10]}  Qa1+ {[%clk 0:00:55]} 24. Bf1 {[%clk 0:00:10]}  Qd1 {[%clk 0:00:37]} 25. Nd4 {[%clk 0:00:05]}  e5 {[%clk 0:00:29]} 26. Nf5 {[%clk 0:00:05]}  Nc3 {[%clk 0:00:24]} 27. Ne7+ {[%clk 0:00:04]}  Kh8 {[%clk 0:00:24]} 28. Qd7 {[%clk 0:00:02]}  Qxc2 {[%clk 0:00:18]} 29. Nxd5 {[%clk 0:00:03]}  Nxd5 {[%clk 0:00:18]} 30. Qxd5 {[%clk 0:00:04]}  Qc7 {[%clk 0:00:18]} 31. Bc4 {[%clk 0:00:02]}  f6 {[%clk 0:00:18]} 32. Qe4 {[%clk 0:00:02]}  g5 {[%clk 0:00:14]} 33. g4 {[%clk 0:00:02]}  Qg7 {[%clk 0:00:13]} 34. Bd3 {[%clk 0:00:02]}  Rd8 {[%clk 0:00:13]} 35. g3 {[%clk 0:00:02]}  Kg8 {[%clk 0:00:13]} 36. Bc4+ {[%clk 0:00:02]}  Kf8 {[%clk 0:00:13]} 37. a3 {[%clk 0:00:01]}  Qc7 {[%clk 0:00:13]} 38. Bd3 {[%clk 0:00:01]}  Qc1+ {[%clk 0:00:12]} 39. Kg2 {[%clk 0:00:02]}  Qc7 {[%clk 0:00:12]} 40. Qf5 {[%clk 0:00:02]}  Qg7 {[%clk 0:00:12]} 41. Be4 {[%clk 0:00:02]}  Ke7 {[%clk 0:00:12]} 42. Qf3 {[%clk 0:00:03]}  Rd6 {[%clk 0:00:12]} 43. Qe2 {[%clk 0:00:04]}  Qf7 {[%clk 0:00:12]} 44. Qa6 {[%clk 0:00:04]}  Kf8 {[%clk 0:00:11]} 45. Qc8+ {[%clk 0:00:04]}  Kg7 {[%clk 0:00:12]} 46. Qc2 {[%clk 0:00:05]}  Qe7 {[%clk 0:00:11]} 47. Qc8 {[%clk 0:00:05]}  Qd7 {[%clk 0:00:10]} 48. Qb8 {[%clk 0:00:05]}  Rd2 {[%clk 0:00:09]} 49. a4 {[%clk 0:00:04]}  a5 {[%clk 0:00:08]} 50. b5 {[%clk 0:00:04]}  Rd6 {[%clk 0:00:07]} 51. Bf3 {[%clk 0:00:03]}  Qe7 {[%clk 0:00:07]} 52. Qc8 {[%clk 0:00:02]}  Re6 {[%clk 0:00:06]} 53. Bd5 {[%clk 0:00:02]}  Qe8 {[%clk 0:00:02]} 54. Qxe6 {[%clk 0:00:01]}  Qxe6 {[%clk 0:00:02]} 55. Bxe6 {[%clk 0:00:02]} 1-0


[Site "https://www.chess.com"]

[Event "Titled Tuesday Blitz August 23 Late 2022"]
[White "Paravyan, David"]
[Black "Matinian, Nikita"]
[WhiteFideId "4194985"]
[BlackFideId "24129100"]
[WhiteElo "2569"]
[BlackElo "2422"]
[Result "1-0"]
[Round "07"]
[TimeControl "180+1"]
[Date "2022.08.23"]
[WhiteClock "0:00:07"]
[BlackClock "0:00:02"]

1. e4 {[%clk 0:03:00]}  c5 {[%clk 0:03:00]} 2. Nf3 {[%clk 0:02:57]}  d6 {[%clk 0:03:00]} 3. d4 {[%clk 0:02:57]}  cxd4 {[%clk 0:03:01]} 4. Nxd4 {[%clk 0:02:58]}  Nf6 {[%clk 0:03:01]} 5. Nc3 {[%clk 0:02:58]}  g6 {[%clk 0:03:02]} 6. Be3 {[%clk 0:02:57]}  Bg7 {[%clk 0:03:01]} 7. f3 {[%clk 0:02:58]}  O-O {[%clk 0:02:59]} 8. Qd2 {[%clk 0:02:58]}  Nc6 {[%clk 0:02:59]} 9. Bc4 {[%clk 0:02:58]}  Rb8 {[%clk 0:02:59]} 10. O-O {[%clk 0:02:49]}  Bd7 {[%clk 0:02:52]} 11. Nxc6 {[%clk 0:02:46]}  bxc6 {[%clk 0:02:52]} 12. Bb3 {[%clk 0:02:43]}  a5 {[%clk 0:02:48]} 13. Rad1 {[%clk 0:02:43]}  Qc7 {[%clk 0:02:44]} 14. Kh1 {[%clk 0:02:36]}  Rb7 {[%clk 0:02:35]} 15. Bh6 {[%clk 0:02:02]}  c5 {[%clk 0:02:28]} 16. Bxg7 {[%clk 0:02:01]}  Kxg7 {[%clk 0:02:28]} 17. Nd5 {[%clk 0:02:01]}  Nxd5 {[%clk 0:02:27]} 18. Bxd5 {[%clk 0:02:02]}  Bc6 {[%clk 0:02:14]} 19. Bxc6 {[%clk 0:02:02]}  Qxc6 {[%clk 0:02:13]} 20. Qxa5 {[%clk 0:02:03]}  Rb4 {[%clk 0:02:04]} 21. a3 {[%clk 0:01:52]}  Ra4 {[%clk 0:02:00]} 22. Qc3+ {[%clk 0:01:51]}  f6 {[%clk 0:02:00]} 23. Rfe1 {[%clk 0:01:28]}  Rb8 {[%clk 0:01:59]} 24. h3 {[%clk 0:01:08]}  Qb6 {[%clk 0:01:55]} 25. b3 {[%clk 0:01:03]}  Rxa3 {[%clk 0:01:51]} 26. f4 {[%clk 0:01:04]}  Qb4 {[%clk 0:01:48]} 27. Qe3 {[%clk 0:00:46]}  c4 {[%clk 0:01:03]} 28. e5 {[%clk 0:00:45]}  dxe5 {[%clk 0:00:59]} 29. fxe5 {[%clk 0:00:45]}  f5 {[%clk 0:00:55]} 30. c3 {[%clk 0:00:42]}  Qb6 {[%clk 0:00:37]} 31. Qg5 {[%clk 0:00:36]}  Qe6 {[%clk 0:00:37]} 32. bxc4 {[%clk 0:00:20]}  Rxc3 {[%clk 0:00:36]} 33. Rd4 {[%clk 0:00:20]}  h6 {[%clk 0:00:36]} 34. Qd2 {[%clk 0:00:15]}  Rbb3 {[%clk 0:00:36]} 35. Rd7 {[%clk 0:00:09]}  Rxc4 {[%clk 0:00:21]} 36. Qd6 {[%clk 0:00:09]}  Kf7 {[%clk 0:00:20]} 37. Ra1 {[%clk 0:00:06]}  Rc6 {[%clk 0:00:11]} 38. Rxe7+ {[%clk 0:00:05]}  Qxe7 {[%clk 0:00:11]} 39. Qxc6 {[%clk 0:00:06]}  Rb7 {[%clk 0:00:07]} 40. Qd5+ {[%clk 0:00:06]}  Kg7 {[%clk 0:00:08]} 41. Ra6 {[%clk 0:00:06]}  Rd7 {[%clk 0:00:07]} 42. Rd6 {[%clk 0:00:06]}  Rxd6 {[%clk 0:00:08]} 43. exd6 {[%clk 0:00:07]}  Qd7 {[%clk 0:00:06]} 44. Kh2 {[%clk 0:00:08]}  Kf6 {[%clk 0:00:07]} 45. h4 {[%clk 0:00:07]}  Qe6 {[%clk 0:00:07]} 46. Qd4+ {[%clk 0:00:06]}  Kf7 {[%clk 0:00:02]} 47. d7 {[%clk 0:00:07]} 1-0


[Site "https://www.chess.com"]

[Event "Titled Tuesday Blitz August 23 Late 2022"]
[White "Salem, A.R. Saleh"]
[Black "Bortnyk, Olexandr"]
[WhiteFideId "9301348"]
[BlackFideId "14120828"]
[WhiteElo "2674"]
[BlackElo "2723"]
[Result "0-1"]
[Round "07"]
[TimeControl "180+1"]
[Date "2022.08.23"]
[WhiteClock "0:00:05"]
[BlackClock "0:00:09"]

1. d4 {[%clk 0:03:00]}  e6 {[%clk 0:02:50]} 2. c4 {[%clk 0:02:58]}  b6 {[%clk 0:02:50]} 3. a3 {[%clk 0:02:56]}  Bb7 {[%clk 0:02:50]} 4. Nc3 {[%clk 0:02:56]}  f5 {[%clk 0:02:50]} 5. Nf3 {[%clk 0:02:52]}  Nf6 {[%clk 0:02:50]} 6. d5 {[%clk 0:02:50]}  Bd6 {[%clk 0:02:50]} 7. g3 {[%clk 0:02:47]}  O-O {[%clk 0:02:41]} 8. Bg2 {[%clk 0:02:47]}  a5 {[%clk 0:02:42]} 9. O-O {[%clk 0:02:46]}  Na6 {[%clk 0:02:38]} 10. Nd4 {[%clk 0:02:45]}  Nc5 {[%clk 0:02:30]} 11. Qc2 {[%clk 0:02:32]}  Qe8 {[%clk 0:02:10]} 12. Bd2 {[%clk 0:02:15]}  a4 {[%clk 0:02:03]} 13. Rad1 {[%clk 0:02:15]}  Qh5 {[%clk 0:02:02]} 14. Bc1 {[%clk 0:02:08]}  f4 {[%clk 0:01:10]} 15. gxf4 {[%clk 0:01:14]}  e5 {[%clk 0:00:46]} 16. Ndb5 {[%clk 0:00:59]}  Rae8 {[%clk 0:00:30]} 17. Nxd6 {[%clk 0:00:59]}  cxd6 {[%clk 0:00:31]} 18. fxe5 {[%clk 0:00:54]}  Ng4 {[%clk 0:00:26]} 19. h3 {[%clk 0:00:52]}  Nxe5 {[%clk 0:00:26]} 20. Rd4 {[%clk 0:00:40]}  Ba6 {[%clk 0:00:23]} 21. Ne4 {[%clk 0:00:38]}  Nxe4 {[%clk 0:00:20]} 22. Rxe4 {[%clk 0:00:36]}  Rc8 {[%clk 0:00:20]} 23. Qxa4 {[%clk 0:00:26]}  Bxc4 {[%clk 0:00:19]} 24. Qd1 {[%clk 0:00:27]}  Ng6 {[%clk 0:00:08]} 25. Rg4 {[%clk 0:00:25]}  h6 {[%clk 0:00:08]} 26. b3 {[%clk 0:00:22]}  Ba6 {[%clk 0:00:06]} 27. Bb2 {[%clk 0:00:22]}  Ne5 {[%clk 0:00:06]} 28. Bxe5 {[%clk 0:00:19]}  Qxe5 {[%clk 0:00:07]} 29. Re1 {[%clk 0:00:17]}  Rc3 {[%clk 0:00:07]} 30. Qd2 {[%clk 0:00:16]}  Qf6 {[%clk 0:00:05]} 31. e4 {[%clk 0:00:14]}  Rxb3 {[%clk 0:00:05]} 32. a4 {[%clk 0:00:14]}  Rb2 {[%clk 0:00:05]} 33. Qe3 {[%clk 0:00:06]}  Qxf2+ {[%clk 0:00:06]} 34. Qxf2 {[%clk 0:00:06]}  Rfxf2 {[%clk 0:00:07]} 35. e5 {[%clk 0:00:05]}  dxe5 {[%clk 0:00:08]} 36. Rxe5 {[%clk 0:00:06]}  Rfe2 {[%clk 0:00:03]} 37. Rxe2 {[%clk 0:00:06]}  Rxe2 {[%clk 0:00:04]} 38. Rb4 {[%clk 0:00:06]}  Re1+ {[%clk 0:00:04]} 39. Kf2 {[%clk 0:00:06]}  Ra1 {[%clk 0:00:05]} 40. Be4 {[%clk 0:00:04]}  Kf7 {[%clk 0:00:05]} 41. Ke3 {[%clk 0:00:05]}  Ke7 {[%clk 0:00:03]} 42. Kd4 {[%clk 0:00:05]}  Bf1 {[%clk 0:00:03]} 43. h4 {[%clk 0:00:04]}  Ra3 {[%clk 0:00:03]} 44. Ke5 {[%clk 0:00:04]}  d6+ {[%clk 0:00:02]} 45. Kf4 {[%clk 0:00:04]}  Rh3 {[%clk 0:00:02]} 46. Rxb6 {[%clk 0:00:03]}  Rxh4+ {[%clk 0:00:02]} 47. Ke3 {[%clk 0:00:04]}  Rh3+ {[%clk 0:00:03]} 48. Kd4 {[%clk 0:00:05]}  Ra3 {[%clk 0:00:04]} 49. Bc2 {[%clk 0:00:05]}  h5 {[%clk 0:00:03]} 50. Rb7+ {[%clk 0:00:05]}  Kf6 {[%clk 0:00:04]} 51. Rb8 {[%clk 0:00:06]}  h4 {[%clk 0:00:04]} 52. Rf8+ {[%clk 0:00:06]}  Ke7 {[%clk 0:00:04]} 53. Rxf1 {[%clk 0:00:07]}  g5 {[%clk 0:00:03]} 54. Kc4 {[%clk 0:00:08]}  g4 {[%clk 0:00:03]} 55. Rf4 {[%clk 0:00:06]}  Rg3 {[%clk 0:00:02]} 56. Bf5 {[%clk 0:00:05]}  h3 {[%clk 0:00:03]} 57. Rxg4 {[%clk 0:00:06]}  h2 {[%clk 0:00:02]} 58. Rh4 {[%clk 0:00:06]}  Rg2 {[%clk 0:00:01]} 59. Be4 {[%clk 0:00:05]}  Re2 {[%clk 0:00:01]} 60. Bf3 {[%clk 0:00:05]}  Rf2 {[%clk 0:00:01]} 61. Bh1 {[%clk 0:00:05]}  Kf6 {[%clk 0:00:01]} 62. Kb5 {[%clk 0:00:05]}  Kg5 {[%clk 0:00:02]} 63. Rh8 {[%clk 0:00:04]}  Kg4 {[%clk 0:00:02]} 64. a5 {[%clk 0:00:05]}  Kg3 {[%clk 0:00:03]} 65. Rg8+ {[%clk 0:00:04]}  Kh3 {[%clk 0:00:04]} 66. a6 {[%clk 0:00:05]}  Rb2+ {[%clk 0:00:04]} 67. Kc6 {[%clk 0:00:05]}  Ra2 {[%clk 0:00:05]} 68. Kb7 {[%clk 0:00:05]}  Rb2+ {[%clk 0:00:06]} 69. Kc7 {[%clk 0:00:05]}  Ra2 {[%clk 0:00:06]} 70. Kxd6 {[%clk 0:00:06]}  Rxa6+ {[%clk 0:00:07]} 71. Ke5 {[%clk 0:00:06]}  Ra1 {[%clk 0:00:07]} 72. Be4 {[%clk 0:00:07]}  Re1 {[%clk 0:00:07]} 73. d6 {[%clk 0:00:07]}  Rxe4+ {[%clk 0:00:07]} 74. Kf5 {[%clk 0:00:05]}  h1=Q {[%clk 0:00:07]} 75. Rh8+ {[%clk 0:00:05]}  Rh4 {[%clk 0:00:08]} 76. Rxh4+ {[%clk 0:00:04]}  Kxh4 {[%clk 0:00:09]} 77. Ke6 {[%clk 0:00:04]}  Qe4+ {[%clk 0:00:08]} 78. Kf7 {[%clk 0:00:04]}  Qd5+ {[%clk 0:00:09]} 79. Ke7 {[%clk 0:00:05]}  Qe5+ {[%clk 0:00:09]} 0-1


[Site "https://www.chess.com"]

[Event "Titled Tuesday Blitz August 23 Late 2022"]
[White "Schmakel, Sam"]
[Black "Manelyuk, Daniil"]
[WhiteFideId "2039311"]
[BlackFideId "44173920"]
[WhiteElo "2356"]
[BlackElo "2209"]
[Result "1-0"]
[Round "07"]
[TimeControl "180+1"]
[Date "2022.08.23"]
[WhiteClock "0:01:07"]
[BlackClock "0:00:17"]

1. d4 {[%clk 0:03:00]}  Nf6 {[%clk 0:02:55]} 2. Bf4 {[%clk 0:03:01]}  c5 {[%clk 0:02:55]} 3. e3 {[%clk 0:03:00]}  b6 {[%clk 0:02:55]} 4. Nf3 {[%clk 0:02:51]}  Bb7 {[%clk 0:02:55]} 5. Be2 {[%clk 0:02:52]}  g6 {[%clk 0:02:55]} 6. O-O {[%clk 0:02:50]}  Bg7 {[%clk 0:02:55]} 7. c4 {[%clk 0:02:45]}  O-O {[%clk 0:02:54]} 8. Nc3 {[%clk 0:02:45]}  cxd4 {[%clk 0:02:53]} 9. exd4 {[%clk 0:02:44]}  d5 {[%clk 0:02:52]} 10. Re1 {[%clk 0:02:42]}  e6 {[%clk 0:02:47]} 11. Rc1 {[%clk 0:02:15]}  Nc6 {[%clk 0:02:41]} 12. c5 {[%clk 0:02:07]}  bxc5 {[%clk 0:02:06]} 13. dxc5 {[%clk 0:02:08]}  Ne4 {[%clk 0:02:06]} 14. Nxe4 {[%clk 0:02:02]}  dxe4 {[%clk 0:02:05]} 15. Nd2 {[%clk 0:02:02]}  e5 {[%clk 0:01:31]} 16. Be3 {[%clk 0:01:59]}  f5 {[%clk 0:01:31]} 17. Qb3+ {[%clk 0:01:58]}  Kh8 {[%clk 0:01:11]} 18. Qxb7 {[%clk 0:01:57]}  f4 {[%clk 0:01:12]} 19. Qxc6 {[%clk 0:01:54]}  fxe3 {[%clk 0:01:12]} 20. Nxe4 {[%clk 0:01:55]}  exf2+ {[%clk 0:01:02]} 21. Nxf2 {[%clk 0:01:56]}  e4 {[%clk 0:00:54]} 22. Qxe4 {[%clk 0:01:51]}  Qd2 {[%clk 0:00:47]} 23. Qc2 {[%clk 0:01:40]}  Qg5 {[%clk 0:00:31]} 24. Rcd1 {[%clk 0:01:21]}  Qh4 {[%clk 0:00:21]} 25. Bf3 {[%clk 0:01:18]}  Rae8 {[%clk 0:00:18]} 26. Rxe8 {[%clk 0:01:12]}  Rxe8 {[%clk 0:00:18]} 27. c6 {[%clk 0:01:12]}  Bd4 {[%clk 0:00:17]} 28. c7 {[%clk 0:01:07]} 1-0


[Site "https://www.chess.com"]

[Event "Titled Tuesday Blitz August 23 Late 2022"]
[White "Shirov, Alexei"]
[Black "Howell, David W L"]
[WhiteFideId "2209390"]
[BlackFideId "410608"]
[WhiteElo "2678"]
[BlackElo "2559"]
[Result "0-1"]
[Round "07"]
[TimeControl "180+1"]
[Date "2022.08.23"]
[WhiteClock "0:00:02"]
[BlackClock "0:00:05"]

1. e4 {[%clk 0:03:00]}  c6 {[%clk 0:02:48]} 2. d4 {[%clk 0:02:59]}  d5 {[%clk 0:02:49]} 3. e5 {[%clk 0:02:59]}  Bf5 {[%clk 0:02:45]} 4. Nf3 {[%clk 0:02:59]}  e6 {[%clk 0:02:42]} 5. Be2 {[%clk 0:02:59]}  Ne7 {[%clk 0:02:42]} 6. O-O {[%clk 0:02:57]}  Nd7 {[%clk 0:02:41]} 7. Nh4 {[%clk 0:02:55]}  Be4 {[%clk 0:02:33]} 8. Nd2 {[%clk 0:02:54]}  c5 {[%clk 0:02:33]} 9. Nxe4 {[%clk 0:02:38]}  dxe4 {[%clk 0:02:32]} 10. g3 {[%clk 0:02:38]}  Rc8 {[%clk 0:02:14]} 11. c3 {[%clk 0:02:29]}  cxd4 {[%clk 0:02:09]} 12. Qxd4 {[%clk 0:02:28]}  Nc5 {[%clk 0:02:05]} 13. Be3 {[%clk 0:02:07]}  Nc6 {[%clk 0:01:56]} 14. Bb5 {[%clk 0:01:50]}  Be7 {[%clk 0:01:49]} 15. Qxd8+ {[%clk 0:01:45]}  Kxd8 {[%clk 0:01:38]} 16. Rad1+ {[%clk 0:01:38]}  Kc7 {[%clk 0:01:33]} 17. Bxc6 {[%clk 0:01:33]}  Kxc6 {[%clk 0:01:25]} 18. Bxc5 {[%clk 0:01:27]}  Bxc5 {[%clk 0:01:26]} 19. b4 {[%clk 0:01:21]}  Be7 {[%clk 0:01:15]} 20. Rd4 {[%clk 0:01:16]}  Kb6 {[%clk 0:00:59]} 21. Rc1 {[%clk 0:01:13]}  Rhd8 {[%clk 0:00:48]} 22. Rxe4 {[%clk 0:01:12]}  Rd2 {[%clk 0:00:44]} 23. a4 {[%clk 0:01:10]}  Rd3 {[%clk 0:00:38]} 24. c4 {[%clk 0:00:51]}  Bxb4 {[%clk 0:00:32]} 25. Kg2 {[%clk 0:00:46]}  a5 {[%clk 0:00:29]} 26. Nf3 {[%clk 0:00:45]}  Rc7 {[%clk 0:00:28]} 27. Rg4 {[%clk 0:00:42]}  g6 {[%clk 0:00:25]} 28. h4 {[%clk 0:00:35]}  h5 {[%clk 0:00:23]} 29. Rf4 {[%clk 0:00:34]}  Rdd7 {[%clk 0:00:21]} 30. Rc2 {[%clk 0:00:34]}  Ka6 {[%clk 0:00:20]} 31. Ng5 {[%clk 0:00:33]}  Bc5 {[%clk 0:00:18]} 32. Ne4 {[%clk 0:00:33]}  Bd4 {[%clk 0:00:18]} 33. Rf3 {[%clk 0:00:26]}  Bxe5 {[%clk 0:00:18]} 34. Rb3 {[%clk 0:00:26]}  Bd4 {[%clk 0:00:17]} 35. Rb5 {[%clk 0:00:26]}  b6 {[%clk 0:00:16]} 36. Ng5 {[%clk 0:00:24]}  Bc5 {[%clk 0:00:15]} 37. Ne4 {[%clk 0:00:24]}  Rd4 {[%clk 0:00:15]} 38. Kf3 {[%clk 0:00:19]}  Bb4 {[%clk 0:00:15]} 39. c5 {[%clk 0:00:18]}  bxc5 {[%clk 0:00:15]} 40. Nxc5+ {[%clk 0:00:17]}  Rxc5 {[%clk 0:00:15]} 41. Rbxc5 {[%clk 0:00:17]}  Bxc5 {[%clk 0:00:16]} 42. Rxc5 {[%clk 0:00:17]}  Rxa4 {[%clk 0:00:11]} 43. Rc7 {[%clk 0:00:17]}  f5 {[%clk 0:00:09]} 44. Rc6+ {[%clk 0:00:16]}  Kb5 {[%clk 0:00:09]} 45. Rxe6 {[%clk 0:00:16]}  Rg4 {[%clk 0:00:10]} 46. Re8 {[%clk 0:00:12]}  a4 {[%clk 0:00:09]} 47. Ra8 {[%clk 0:00:11]}  Kb4 {[%clk 0:00:08]} 48. Kg2 {[%clk 0:00:10]}  f4 {[%clk 0:00:08]} 49. Ra6 {[%clk 0:00:08]}  fxg3 {[%clk 0:00:08]} 50. f3 {[%clk 0:00:07]}  Rxh4 {[%clk 0:00:07]} 51. Rxg6 {[%clk 0:00:07]}  a3 {[%clk 0:00:07]} 52. Kxg3 {[%clk 0:00:04]}  Rc4 {[%clk 0:00:06]} 53. Ra6 {[%clk 0:00:02]}  Kb3 {[%clk 0:00:06]} 54. f4 {[%clk 0:00:02]}  a2 {[%clk 0:00:06]} 55. f5 {[%clk 0:00:02]}  Ra4 {[%clk 0:00:05]} 0-1


[Site "https://www.chess.com"]